bitfinex-derivatives/quotes_ETHF0:USTF0_20260316
["timestamp","ask_amount","ask_price","bid_price","bid_amount"]
[1773657379210,4.05823851,2259.1,2258.6,6.18368514]
[1773657379410,4.05823851,2259.6,2258.6,6.18368514]
[1773657379608,4.05823851,2259.4,2258.6,6.18368514]
[1773657380314,4.06137651,2259.4,2258.6,6.18368514]
[1773657385013,4.33357556,2259.1,2257.8,5.93523256]
[1773657385218,4.33357556,2259.0,2257.8,5.93523256]
[1773657386918,4.36586226,2258.5,2257.8,5.93523256]
[1773657387318,4.36586226,2258.5,2257.7,0.98052742]
[1773657387319,0.98052742,2258.0,2257.7,5.84938748]
[1773657387519,7.22359757,2258.4,2257.7,5.84938748]
[1773657387723,40.8,2258.4,2257.7,6.8299149]
[1773657387924,7.22359757,2258.6,2257.7,6.8299149]
[1773657388222,6.24307015,2258.6,2258.0,5.93523256]
[1773657389123,6.24307015,2259.1,2258.0,5.93523256]
[1773657389328,6.24307015,2259.0,2258.0,5.93523256]
[1773657389527,6.24307015,2258.8,2258.0,5.93523256]
[1773657394628,6.24307015,2258.8,2257.7,5.93523256]
[1773657395532,6.46953943,2258.8,2257.7,5.93523256]
[1773657396631,1.5882677,2258.6,2257.7,5.93523256]
[1773657396830,6.24307015,2258.5,2257.7,5.93523256]
[1773657399830,6.24307015,2258.5,2257.6,0.00539384]
[1773657400432,6.24307015,2258.2,2257.6,0.00539384]
[1773657400931,6.24307015,2258.2,2257.3,5.93523256]
[1773657401938,6.24307015,2258.2,2257.3,5.93980556]
[1773657407439,6.24307015,2258.1,2256.9,5.93523256]
[1773657408036,6.24307015,2257.9,2256.9,5.93523256]
[1773657408436,6.24307015,2257.9,2256.9,5.93626094]
[1773657408741,7.22423535,2257.9,2257.1,5.93523256]
[1773657410942,6.24307015,2257.6,2257.1,5.93523256]
[1773657411141,6.24812779,2257.6,2257.1,5.93523256]
[1773657411639,6.24307015,2257.4,2257.0,5.93523256]
[1773657413137,6.24307015,2257.4,2257.0,5.61362986]
[1773657413341,6.24307015,2257.4,2256.9,6.03058799]
[1773657414039,5.71250198,2257.1,2256.1,0.22158]
[1773657414240,0.98147911,2257.2,2255.8,6.02955961]
[1773657414241,5.71250198,2256.9,2255.8,7.01103872]
[1773657414942,6.69398109,2256.9,2255.8,6.02955961]
[1773657415441,6.22205764,2256.7,2255.8,6.02955961]
[1773657418143,40.8,2256.8,2255.9,0.2216]
[1773657418441,40.8,2256.8,2255.8,6.02955961]
[1773657418442,6.22205764,2257.3,2256.2,5.82554606]
[1773657418746,6.22205764,2257.2,2256.3,0.22156]
[1773657418941,6.22205764,2258.1,2256.9,5.82554606]
[1773657419945,6.22624499,2258.1,2256.9,5.82990761]
[1773657422242,6.22205764,2257.9,2256.9,0.00436155]
[1773657422846,6.22205764,2257.9,2256.5,5.82554606]
[1773657423845,6.22205764,2257.9,2256.7,5.82554606]
[1773657425750,6.44345805,2257.9,2256.7,5.82554606]
[1773657429250,6.22205764,2257.7,2256.7,5.82554606]
[1773657432451,6.44345805,2257.9,2256.9,5.82554606]
[1773657432653,6.22205764,2257.9,2256.9,5.82554606]
[1773657433154,0.22340546,2258.0,2257.1,5.82554606]
[1773657433551,0.00418735,2258.1,2257.1,5.82554606]
[1773657433752,6.22624499,2258.1,2257.1,5.82554606]
[1773657436955,6.22624499,2258.1,2257.0,0.22149]
[1773657436956,6.22624499,2258.1,2257.3,5.82554606]
[1773657439757,0.00418735,2258.1,2257.3,5.82554606]
[1773657440059,6.22205764,2258.9,2257.3,5.82554606]
[1773657440267,6.22205764,2258.7,2257.3,5.82554606]
[1773657440456,6.22205764,2258.7,2257.5,5.82554606]
[1773657440759,6.22205764,2258.5,2257.5,5.82554606]
[1773657441059,6.22764293,2258.5,2257.5,5.82964062]
[1773657445862,0.00558529,2258.5,2257.7,5.7791524]
[1773657446563,5.57851697,2258.5,2257.7,5.7791524]
[1773657446764,0.00558529,2258.5,2257.7,5.7791524]
[1773657446966,5.57851697,2258.5,2257.7,5.7791524]
[1773657447363,5.57851697,2258.5,2257.5,0.00409456]
[1773657447567,5.57851697,2258.5,2257.5,5.78324696]
[1773657453167,5.80264774,2258.5,2257.5,5.78324696]
[1773657459569,5.57293168,2258.3,2257.5,5.78324696]
[1773657460276,5.80264774,2258.5,2257.5,6.00468696]
[1773657460673,5.80264774,2258.5,2257.5,5.78324696]
[1773657461169,5.57293168,2258.3,2257.5,5.78324696]
[1773657465478,5.57293168,2258.1,2257.1,5.7791524]
[1773657465773,5.57293168,2257.9,2257.1,5.7791524]
[1773657467178,5.57293168,2257.7,2257.1,5.7791524]
[1773657467979,5.57293168,2257.7,2256.4,6.0007024]
[1773657468381,5.57293168,2257.7,2256.5,5.7791524]
[1773657469172,5.57293168,2257.7,2256.7,5.7791524]
[1773657471982,41.02276082,2257.8,2256.9,5.7791524]
[1773657472182,46.5956925,2257.8,2256.9,5.7791524]
[1773657472885,5.55679688,2257.7,2256.9,5.7791524]
[1773657478788,5.4889039,2257.5,2256.9,5.7791524]
[1773657478987,5.4889039,2257.7,2256.9,6.76059494]
[1773657481091,5.4889039,2258.0,2257.4,5.09627705]
[1773657481481,5.4889039,2258.1,2257.5,0.98144254]
[1773657481683,5.4889039,2258.3,2257.6,5.09627705]
[1773657482789,5.4889039,2258.2,2257.6,5.09627705]
[1773657484391,5.4889039,2258.2,2257.1,0.22148]
[1773657484592,5.4889039,2258.1,2257.2,5.09627705]
[1773657491801,5.71132529,2258.1,2257.2,5.09627705]
[1773657492500,5.4889039,2258.1,2257.2,5.09627705]
[1773657492902,46.2889039,2258.3,2257.4,5.09627705]
[1773657493399,5.4889039,2258.2,2257.4,5.09627705]
[1773657495005,5.4889039,2258.2,2257.2,5.09627705]
[1773657495602,5.4889039,2258.2,2257.2,5.31774705]
[1773657498407,5.4889039,2258.1,2257.2,5.09627705]
[1773657504712,5.4889039,2258.1,2257.4,0.98085567]
[1773657504918,5.4889039,2258.1,2257.4,6.00016492]
[1773657505611,5.71212216,2258.1,2257.4,6.00016492]
[1773657505819,5.71212216,2258.1,2257.4,5.01930925]
[1773657506020,4.79972394,2257.9,2257.1,0.98085567]
[1773657506318,4.79972394,2257.9,2257.2,5.01930925]
[1773657507720,4.79972394,2257.9,2257.3,6.00016492]
[1773657508514,4.79972394,2257.9,2257.1,6.00016492]
[1773657512121,4.79972394,2257.9,2257.3,6.00016492]
[1773657516526,4.79972394,2257.9,2257.2,5.01930925]
[1773657516921,45.59972394,2258.3,2257.7,0.98085567]
[1773657517117,4.79972394,2258.2,2257.8,5.01930925]
[1773657519325,4.79972394,2258.2,2257.7,5.01930925]
[1773657520128,40.8,2258.3,2257.7,5.01930925]
[1773657520329,45.59972394,2258.3,2257.7,5.01930925]
[1773657520730,4.79972394,2258.2,2257.7,5.01930925]
[1773657522536,40.8,2258.3,2257.9,5.01930925]
[1773657523137,45.59972394,2258.3,2257.9,5.01930925]
[1773657524136,4.79972394,2258.3,2257.9,5.01930925]
[1773657524337,4.08591129,2258.3,2257.9,5.01930925]
[1773657524736,40.8,2258.4,2258.1,5.01930925]
[1773657525244,45.59972394,2258.4,2258.0,6.00016492]
[1773657525440,45.59972394,2258.4,2257.8,6.00016492]
[1773657525441,4.79972394,2258.3,2257.8,6.00016492]
[1773657526139,4.79972394,2258.3,2257.8,5.01930925]
[1773657526736,5.78057961,2258.3,2257.8,5.01930925]
[1773657527640,4.79972394,2258.3,2257.8,5.01930925]
[1773657528841,4.79972394,2258.1,2257.5,5.01930925]
[1773657531445,4.79972394,2257.9,2257.5,5.01930925]
[1773657531647,4.79972394,2258.1,2257.5,5.01930925]
[1773657532237,40.8,2258.0,2257.5,5.01930925]
[1773657532441,4.79972394,2258.1,2257.5,5.01930925]
[1773657532945,45.59972394,2258.1,2257.5,5.01930925]
[1773657533139,4.42594978,2258.0,2257.5,5.01930925]
[1773657535141,4.42594978,2258.0,2257.0,1.20245519]
[1773657535340,4.42594978,2258.0,2257.1,4.61000511]
[1773657540543,40.8,2258.1,2257.3,4.61000511]
[1773657540943,4.44482205,2258.0,2257.3,4.61000511]
[1773657541343,5.42578724,2258.0,2257.1,4.61000511]
[1773657541543,4.44482205,2257.8,2257.1,4.61000511]
[1773657542442,4.44482205,2258.0,2257.1,4.61000511]
[1773657547057,40.8,2258.1,2257.3,4.61000511]
[1773657547350,4.66380224,2258.2,2257.3,4.61000511]
[1773657547844,4.44482205,2258.3,2257.3,4.61000511]
[1773657548049,4.44482205,2258.3,2257.6,4.61000511]
[1773657548251,4.44482205,2258.3,2257.3,4.61000511]
[1773657548453,4.44482205,2258.1,2257.3,4.61000511]
[1773657550154,5.42578724,2258.1,2257.3,4.61000511]
[1773657552858,5.42578724,2258.1,2256.8,4.61000511]
[1773657553059,4.44482205,2257.7,2256.8,4.61000511]
[1773657553659,5.42578724,2257.7,2256.8,4.61000511]
[1773657558352,4.44482205,2257.0,2256.4,4.61000511]
[1773657561361,4.44482205,2256.7,2256.2,4.61000511]
[1773657561560,4.44818865,2256.7,2256.2,4.61000511]
[1773657561960,0.0033666,2256.7,2256.2,4.61000511]
[1773657563959,45.00951335,2257.1,2256.2,4.61000511]
[1773657564159,4.20951335,2257.0,2256.2,4.61000511]
[1773657564960,4.21448711,2257.0,2256.2,4.6141606]
[1773657566562,0.00497376,2257.0,2256.2,4.6141606]
[1773657567162,0.00497376,2257.0,2256.4,4.37643425]
[1773657571471,4.20951335,2257.5,2256.6,4.37643425]
[1773657571967,45.00951335,2257.4,2256.6,4.37643425]
[1773657572468,45.01412207,2257.4,2256.6,4.37643425]
[1773657572670,4.20951335,2257.3,2256.6,4.37643425]
[1773657573174,45.01412207,2257.4,2256.7,0.22152]
[1773657573370,0.00460872,2257.4,2256.8,4.37643425]
[1773657574868,0.00460872,2257.4,2257.0,4.37643425]
[1773657575266,4.20951335,2257.7,2257.0,4.37643425]
[1773657575873,4.20951335,2257.9,2257.0,4.37643425]
[1773657576168,4.2139518,2257.9,2257.1,0.22148]
[1773657576368,0.00443845,2257.9,2257.2,4.37643425]
[1773657577173,40.8,2258.1,2257.4,4.37643425]
[1773657577371,4.20951335,2258.3,2257.4,4.37643425]
[1773657578272,4.21377266,2258.3,2257.4,4.37643425]
[1773657580175,45.00951335,2258.2,2257.4,4.37643425]
[1773657581280,4.20951335,2258.1,2256.9,4.37643425]
[1773657582379,4.43090335,2258.1,2256.9,4.37643425]
[1773657583381,4.20951335,2258.1,2256.9,4.37643425]
[1773657585679,4.20951335,2257.9,2256.9,4.37643425]
[1773657591174,40.8,2257.8,2256.9,4.37643425]
[1773657591380,4.20951335,2258.0,2257.1,4.37643425]
[1773657592877,4.20951335,2258.0,2257.3,4.23782316]
[1773657600288,3.96668889,2257.7,2256.8,4.10069141]
[1773657600985,4.94811635,2257.5,2256.8,4.10069141]
[1773657601891,0.98142746,2257.7,2257.0,4.10069141]
[1773657602088,3.96668889,2258.0,2257.2,5.08211887]
[1773657602487,0.98142746,2258.2,2257.4,5.08211887]
[1773657602786,0.00425931,2258.3,2257.9,4.10069141]
[1773657602986,3.96668889,2258.5,2257.9,4.10069141]
[1773657602987,3.96668889,2258.5,2257.9,4.10528935]
[1773657603187,3.96668889,2258.5,2258.1,4.10069141]
[1773657603382,0.98142746,2258.7,2258.1,4.10069141]
[1773657603588,0.98142746,2258.8,2258.1,4.10069141]
[1773657603789,4.94811635,2258.8,2258.1,4.10069141]
[1773657603991,4.95195709,2258.8,2258.1,4.10069141]
[1773657604488,0.9852682,2258.8,2258.1,4.10069141]
[1773657604991,0.00384074,2258.8,2258.1,4.10069141]
[1773657605792,3.96668889,2259.2,2258.3,4.10069141]
[1773657605992,3.96668889,2259.7,2258.3,4.10069141]
[1773657606198,4.1846385,2259.7,2258.3,4.10069141]
[1773657606392,3.96668889,2259.5,2258.3,4.10069141]
[1773657606597,3.96668889,2259.4,2258.3,4.10069141]
[1773657606792,3.97142603,2259.4,2258.3,4.10069141]
[1773657608697,3.96668889,2259.1,2258.3,4.10069141]
[1773657609199,0.00473714,2259.4,2257.9,0.00459794]
[1773657609200,3.96668889,2258.5,2257.9,4.10528935]
[1773657609497,3.96668889,2258.5,2257.9,0.00459794]
[1773657609799,1.58811474,2258.3,2257.7,4.10069141]
[1773657610096,3.96668889,2258.2,2256.8,4.10069141]
[1773657610289,3.96668889,2258.2,2257.2,4.10069141]
[1773657610995,3.96668889,2258.2,2257.2,4.10639187]
[1773657611197,3.96668889,2258.8,2257.4,4.10069141]
[1773657611398,4.13894962,2259.2,2257.4,4.10069141]
[1773657611399,3.96668889,2258.5,2257.4,4.10069141]
[1773657611900,44.76668889,2258.4,2257.4,4.10069141]
[1773657612604,3.96668889,2258.4,2257.4,4.10069141]
[1773657613003,44.76668889,2258.4,2257.4,4.10069141]
[1773657613501,3.96668889,2258.4,2257.4,4.10069141]
[1773657614501,3.96668889,2258.4,2257.6,4.10069141]
[1773657614697,40.8,2258.7,2257.6,4.10069141]
[1773657614899,3.96668889,2258.6,2257.6,4.10069141]
[1773657616103,3.96668889,2258.5,2257.6,4.10069141]
[1773657618307,3.96668889,2258.5,2257.3,4.10069141]
[1773657618504,3.96668889,2258.2,2257.3,4.10069141]
[1773657618709,3.96668889,2257.9,2257.2,4.10639187]
[1773657619808,5.28668825,2258.6,2257.2,4.10639187]
[1773657620010,3.96228842,2258.4,2257.2,4.10639187]
[1773657620211,3.94710669,2258.2,2257.2,4.10639187]
[1773657628407,3.88802957,2258.4,2257.2,4.10639187]
[1773657632107,3.8533245,2258.6,2257.4,4.19780349]
[1773657633405,3.8533245,2258.6,2257.6,4.19780349]
[1773657638414,3.8533245,2258.6,2257.8,4.19780349]
[1773657639712,1.58811474,2258.4,2257.3,4.19780349]
[1773657639912,3.81263737,2258.3,2257.3,4.19780349]
[1773657640105,3.81263737,2258.3,2257.2,0.22717046]
[1773657640106,3.80123068,2259.2,2257.9,4.19780349]
[1773657641713,3.82528507,2259.1,2257.9,4.19780349]
[1773657645116,3.82528507,2259.1,2258.1,4.19780349]
[1773657646115,3.83356224,2258.9,2258.1,4.19780349]
[1773657648017,3.8125348,2259.2,2258.1,4.19780349]
[1773657649025,0.00473714,2259.4,2258.3,4.19780349]
[1773657649822,0.00473714,2259.4,2258.5,4.19780349]
[1773657651618,3.76863215,2259.3,2258.5,4.19780349]
[1773657654024,3.77320792,2259.1,2258.0,3.84741936]
[1773657657027,3.77320792,2259.1,2258.2,4.03944059]
[1773657658029,3.68312707,2259.3,2258.2,4.03944059]
[1773657661732,3.65139372,2259.0,2257.9,4.03944059]
[1773657663033,3.64160187,2258.8,2257.9,4.03944059]
[1773657672645,3.64160187,2258.8,2257.7,4.03944059]
[1773657673038,3.51580492,2258.6,2257.7,4.03944059]
[1773657673442,3.51580492,2258.6,2257.3,4.03944059]
[1773657674051,3.50531076,2258.4,2257.3,4.03944059]
[1773657674350,40.8,2258.5,2257.6,0.22144]
[1773657674542,40.8,2258.5,2257.7,4.03944059]
[1773657674743,44.29075399,2258.5,2257.7,4.03944059]
[1773657675345,3.28966403,2258.4,2257.7,4.03944059]
[1773657681055,44.03840889,2258.5,2257.7,4.03944059]
[1773657683163,3.23840889,2258.5,2257.7,4.03944059]
[1773657683659,44.03840889,2258.5,2257.7,4.03944059]
[1773657683959,3.23840889,2258.5,2257.7,4.03944059]
[1773657692067,40.8,2258.8,2257.9,3.7067531]
[1773657692266,40.8,2258.8,2258.0,0.2214]
[1773657692570,3.08128949,2259.0,2258.1,3.7067531]
[1773657692770,3.08128949,2259.0,2258.3,3.7067531]
[1773657692966,43.88128949,2259.0,2258.3,3.7067531]
[1773657693664,3.05370413,2259.2,2258.5,3.7067531]
[1773657694573,3.05370413,2259.2,2258.4,0.22136]
[1773657694574,3.06142187,2259.5,2258.7,3.7067531]
[1773657694874,3.06142187,2259.8,2258.7,3.7067531]
[1773657695263,3.2815742,2259.8,2258.7,3.7067531]
[1773657695464,3.03201622,2259.6,2258.7,3.7067531]
[1773657695973,3.03595208,2259.6,2258.7,3.7067531]
[1773657701478,2.99684644,2259.4,2258.7,3.7067531]
[1773657701679,0.00393586,2259.6,2258.7,3.7067531]
[1773657701980,1.58831942,2259.4,2258.2,3.8784437]
[1773657702376,0.00393586,2259.6,2258.2,3.8784437]
[1773657702677,0.22126,2259.4,2258.2,3.8784437]
[1773657702878,5.64514948,2259.4,2258.2,3.8784437]
[1773657703078,0.29853954,2259.3,2258.2,3.8784437]
[1773657703876,0.2793542,2259.2,2258.2,3.8784437]
[1773657707676,0.2793542,2259.2,2258.4,3.85457597]
[1773657708080,41.12520894,2259.1,2258.4,3.85457597]
[1773657708276,0.31293605,2259.0,2258.4,3.85457597]
[1773657708684,40.8,2259.1,2258.4,3.85457597]
[1773657708884,41.11293605,2259.1,2258.4,3.85457597]
[1773657709589,0.33576961,2259.0,2258.4,3.85457597]
[1773657713290,0.00393586,2259.6,2258.4,3.85457597]
[1773657713494,0.26979086,2259.6,2258.4,3.85457597]
[1773657713695,41.065855,2259.5,2258.4,3.85457597]
[1773657713896,0.265855,2259.4,2258.4,3.85457597]
[1773657714996,41.04754913,2259.5,2258.4,3.85457597]
[1773657715199,41.04754913,2259.5,2258.6,3.86916834]
[1773657715597,0.00393586,2259.6,2258.6,3.86916834]
[1773657716098,40.80393586,2259.6,2258.6,3.86916834]
[1773657716992,0.23977424,2259.5,2258.6,3.86916834]
[1773657718293,5.43386037,2259.0,2258.1,3.67513735]
[1773657718998,3.84664158,2259.0,2258.1,3.67513735]
[1773657721000,3.84664158,2259.5,2258.3,3.67513735]
[1773657721402,3.84664158,2259.5,2258.5,3.67513735]
[1773657722395,44.65057744,2259.6,2258.7,3.67513735]
[1773657722902,3.84664158,2259.5,2258.7,3.67513735]
[1773657723401,44.65057744,2259.6,2258.7,3.67513735]
[1773657723601,3.84664158,2259.5,2258.7,3.67513735]
[1773657726512,3.84664158,2259.2,2258.2,3.67513735]
[1773657734019,3.84664158,2259.4,2258.4,3.67513735]
[1773657734522,3.84664158,2259.4,2258.6,3.67513735]
[1773657738617,44.65057744,2259.6,2258.7,0.22133]
[1773657738919,44.65057744,2259.6,2258.8,3.67513735]
[1773657739120,40.80393586,2259.6,2258.8,3.67925998]
[1773657739320,0.00393586,2259.6,2258.8,3.67925998]
[1773657742920,0.00393586,2259.6,2259.0,3.64586766]
[1773657745425,3.89663226,2260.0,2259.2,3.64586766]
[1773657745618,3.89663226,2260.3,2259.2,3.64586766]
[1773657745821,44.69663226,2260.3,2259.2,3.64586766]
[1773657746022,3.89663226,2260.2,2259.2,3.64586766]
[1773657746622,3.90007117,2260.2,2259.2,3.64586766]
[1773657746826,3.90007117,2260.2,2259.4,3.64586766]
[1773657748030,0.00343891,2260.2,2259.6,3.64586766]
[1773657749634,3.90007117,2260.2,2259.6,3.64586766]
[1773657750534,0.00343891,2260.2,2259.6,3.64586766]
[1773657751633,3.90007117,2260.2,2259.6,3.64586766]
[1773657752540,3.90007117,2260.2,2259.0,3.64586766]
[1773657757043,4.43,2260.7,2259.0,3.64586766]
[1773657757044,4.18575316,2261.0,2259.6,3.64586766]
[1773657757240,0.2891209,2261.0,2259.6,3.64586766]
[1773657757444,3.89663226,2261.4,2259.5,1.80845879]
[1773657757445,44.69663226,2261.2,2260.0,3.64586766]
[1773657757739,3.89663226,2261.1,2260.2,3.64586766]
[1773657758045,3.90022735,2261.1,2260.2,3.64586766]
[1773657759944,0.00359509,2261.1,2260.2,3.64586766]
[1773657760437,3.90022735,2261.1,2260.2,3.64586766]
[1773657763747,3.89663226,2260.7,2260.2,3.64586766]
[1773657763943,5.48385105,2260.9,2260.0,3.64586766]
[1773657764143,3.89663226,2260.8,2260.0,3.64586766]
[1773657765248,3.89663226,2260.8,2259.4,3.64586766]
[1773657765749,3.89663226,2260.5,2259.4,3.64586766]
[1773657767746,3.89663226,2260.2,2259.4,3.64586766]
[1773657768339,3.89663226,2260.2,2258.9,3.64586766]
[1773657768848,3.89663226,2260.0,2259.0,3.64586766]
[1773657770048,3.89663226,2259.9,2259.0,3.64586766]
[1773657777152,3.89663226,2259.9,2258.8,3.53430295]
[1773657777753,44.52077913,2260.1,2259.0,3.53018032]
[1773657778354,44.52077913,2260.1,2259.1,0.22129]
[1773657778554,44.52077913,2260.1,2259.2,3.53018032]
[1773657778955,3.72077913,2260.0,2259.2,3.53018032]
[1773657781255,40.8,2260.1,2259.3,0.22127]
[1773657781454,3.72077913,2260.2,2259.4,3.53018032]
[1773657781851,3.72077913,2260.7,2259.4,3.53018032]
[1773657782051,3.72077913,2260.5,2259.6,3.53018032]
[1773657783556,44.52077913,2260.5,2259.6,3.53018032]
[1773657783857,3.72077913,2261.0,2259.8,3.53018032]
[1773657784254,3.72077913,2260.8,2259.8,3.53018032]
[1773657785454,3.72077913,2260.8,2259.5,0.22125]
[1773657785659,3.72077913,2260.8,2259.6,3.53018032]
[1773657787762,3.72077913,2260.8,2259.1,3.53018032]
[1773657788061,3.72077913,2260.8,2259.2,3.53018032]
[1773657788462,3.72077913,2260.6,2259.2,3.53018032]
[1773657792264,3.72077913,2260.4,2259.2,3.53018032]
[1773657794561,3.72077913,2260.4,2259.4,3.53018032]
[1773657796578,3.72077913,2260.4,2259.6,3.53018032]
[1773657800279,3.72077913,2260.6,2259.6,3.53018032]
[1773657801279,3.9372929,2260.6,2259.6,3.53018032]
[1773657804584,3.49341035,2260.4,2259.6,3.53018032]
[1773657805782,3.49341035,2260.4,2259.2,3.38829758]
[1773657807288,3.49341035,2260.2,2259.2,3.38829758]
[1773657808388,3.49341035,2260.0,2259.2,3.38829758]
[1773657809182,3.49341035,2260.0,2259.0,3.38829758]
[1773657814991,3.71818839,2260.0,2259.0,3.38829758]
[1773657816591,3.49341035,2259.8,2259.0,3.38829758]
[1773657816992,40.8,2259.9,2259.1,0.22129]
[1773657817193,44.29341035,2259.9,2259.2,3.38829758]
[1773657817392,3.49341035,2259.8,2259.2,3.38829758]
[1773657820796,40.8,2259.9,2259.2,3.38829758]
[1773657821090,44.29341035,2259.9,2259.2,3.38829758]
[1773657821288,3.49341035,2259.8,2259.2,3.38829758]
[1773657825801,40.8,2259.9,2259.2,3.38829758]
[1773657827500,3.49341035,2260.0,2259.2,3.38829758]
[1773657828602,3.49341035,2260.4,2259.2,3.38829758]
[1773657830808,3.49341035,2260.4,2259.4,3.38829758]
[1773657834207,3.4730709,2260.2,2259.4,3.38829758]
[1773657835606,44.13969197,2260.3,2259.4,3.38829758]
[1773657835908,3.33969197,2260.2,2259.4,3.38829758]
[1773657842815,4.31900725,2260.0,2259.4,3.38829758]
[1773657843715,3.33969197,2259.9,2259.4,3.38829758]
[1773657844411,3.33969197,2259.7,2259.2,3.35309046]
[1773657845610,3.33969197,2259.9,2259.2,3.35309046]
[1773657845919,4.31900725,2260.0,2259.2,3.57437046]
[1773657847227,3.33969197,2259.9,2259.2,3.57437046]
[1773657847421,3.33969197,2259.9,2259.4,3.35309046]
[1773657847923,0.97931528,2260.2,2259.4,3.35309046]
[1773657847924,3.33969197,2260.1,2259.4,3.35309046]
[1773657849020,0.97931528,2260.0,2259.4,3.35309046]
[1773657849322,3.33969197,2259.7,2259.4,3.35309046]
[1773657849524,3.33969197,2259.9,2259.4,3.35309046]
[1773657852829,3.33969197,2259.7,2259.4,3.35309046]
[1773657853432,4.31900725,2259.6,2259.2,3.57437046]
[1773657854129,3.33969197,2259.9,2259.2,3.57437046]
[1773657862932,3.43017624,2260.2,2259.6,3.33943414]
[1773657863233,3.43017624,2260.3,2259.6,3.33943414]
[1773657864433,3.43017624,2260.3,2259.7,0.22123]
[1773657864634,3.43017624,2260.3,2259.8,3.33943414]
[1773657867639,3.43017624,2260.3,2259.7,3.56066414]
[1773657867940,3.43017624,2260.3,2259.7,0.22123]
[1773657868142,3.43017624,2260.3,2259.7,3.56066414]
[1773657876843,3.43017624,2260.2,2259.7,3.56066414]
[1773657877349,3.43017624,2260.2,2259.8,3.33943414]
[1773657878345,3.43017624,2260.2,2259.7,0.22123]
[1773657878346,3.43017624,2260.2,2259.7,3.56066414]
[1773657878549,3.43017624,2260.0,2259.7,0.22123]
[1773657884351,3.43017624,2260.0,2259.7,3.56066414]
[1773657884953,3.43017624,2260.0,2259.7,0.22123]
[1773657886251,3.43017624,2260.0,2259.5,3.33943414]
[1773657886451,0.97897688,2260.0,2259.4,3.33943414]
[1773657886658,3.43017624,2259.9,2259.4,3.33943414]
[1773657896360,0.97897688,2259.6,2259.1,3.23362655]
[1773657896566,3.17563493,2259.8,2259.3,3.23362655]
[1773657896757,3.17563493,2259.8,2259.1,3.23362655]
[1773657897154,3.17563493,2259.7,2259.1,3.23362655]
[1773657897862,3.17563493,2259.5,2258.9,3.23362655]
[1773657898062,3.18043883,2259.5,2258.9,4.21260343]
[1773657898264,3.18043883,2259.5,2259.0,3.23362655]
[1773657898959,3.17563493,2259.4,2259.0,3.23362655]
[1773657899161,43.98043883,2259.5,2259.0,3.23362655]
[1773657899561,3.18043883,2259.5,2259.0,3.23362655]
[1773657899763,0.0048039,2259.5,2259.3,3.23362655]
[1773657899964,40.8,2259.8,2259.3,3.23362655]
[1773657900164,3.17563493,2259.7,2259.3,3.23362655]
[1773657900862,3.17905976,2259.7,2259.3,3.23362655]
[1773657904268,3.17905976,2259.7,2258.9,3.23362655]
[1773657907864,3.17905976,2259.7,2258.8,3.23774918]
[1773657908070,3.17563493,2259.5,2258.8,3.23774918]
[1773657908768,3.17563493,2259.3,2258.6,3.23362655]
[1773657909864,3.17563493,2259.3,2258.6,3.23708444]
[1773657910775,3.17563493,2259.3,2258.6,3.06008444]
[1773657914175,3.17563493,2259.2,2258.6,3.06008444]
[1773657916083,0.97934293,2259.1,2258.6,0.00345789]
[1773657916289,3.17563493,2259.0,2258.4,3.23362655]
[1773657916491,3.17563493,2259.0,2258.2,3.23362655]
[1773657916887,3.17563493,2259.4,2258.2,3.23362655]
[1773657917188,3.17563493,2259.4,2258.4,3.23362655]
[1773657917388,3.17563493,2259.4,2258.6,3.23362655]
[1773657920088,3.17563493,2259.4,2258.8,3.23362655]
[1773657925994,3.21336344,2259.5,2258.8,3.23362655]
[1773657926589,0.00342483,2259.7,2259.0,3.16206975]
[1773657926785,3.21336344,2260.5,2259.5,3.16206975]
[1773657927390,3.21336344,2260.0,2259.4,3.38332975]
[1773657927795,3.21792031,2260.0,2259.4,3.38332975]
[1773657927997,0.00455687,2260.0,2259.4,3.38332975]
[1773657928992,3.21336344,2260.2,2259.4,3.38332975]
[1773657929298,3.21336344,2260.5,2259.4,3.38332975]
[1773657930098,3.21880691,2260.5,2259.4,3.38332975]
[1773657931600,3.21336344,2260.1,2259.4,3.38332975]
[1773657932397,3.21336344,2260.1,2259.2,3.16206975]
[1773657932797,0.9847864,2260.5,2259.4,3.16206975]
[1773657932798,3.21336344,2260.2,2259.4,3.16206975]
[1773657933299,3.21336344,2260.0,2259.4,3.16206975]
[1773657933500,3.21336344,2259.8,2258.9,3.16206975]
[1773657940810,3.21336344,2259.8,2259.0,3.16206975]
[1773657941008,3.21336344,2260.2,2259.4,3.16206975]
[1773657945611,3.21336344,2260.4,2259.7,3.16206975]
[1773657950614,0.00544347,2260.5,2259.7,3.16206975]
[1773657951315,0.00544347,2260.5,2259.9,3.16206975]
[1773657951512,0.00544347,2260.5,2259.9,3.1676244]
[1773657953814,40.8,2260.9,2260.1,3.95247188]
[1773657954016,40.8,2260.9,2260.2,2.97312895]
[1773657954017,2.93335561,2260.8,2260.2,2.97312895]
[1773657954418,2.93335561,2260.4,2259.9,0.00555465]
[1773657954719,2.93335561,2260.0,2259.1,2.97312895]
[1773657955017,3.05186802,2259.7,2259.1,2.97312895]
[1773657955717,3.05707599,2259.7,2259.1,2.97878457]
[1773657958318,0.00520797,2259.7,2259.1,2.97878457]
[1773657959215,3.05186802,2259.6,2259.1,3.02488611]
[1773657959414,3.05707599,2259.7,2259.1,3.02488611]
[1773657959815,0.00520797,2259.7,2259.1,3.02488611]
[1773657960722,3.05707599,2259.7,2259.1,3.02488611]
[1773657962719,0.00520797,2259.7,2259.2,0.22128]
[1773657963023,3.05186802,2259.9,2259.3,3.01923049]
[1773657963218,3.05186802,2260.1,2259.5,3.01923049]
[1773657963819,3.05186802,2260.2,2259.5,3.01923049]
[1773657964018,3.05594036,2260.2,2259.5,3.01923049]
[1773657965827,3.05186802,2259.9,2259.2,3.01923049]
[1773657967523,3.05186802,2259.9,2259.1,0.00565562]
[1773657968121,3.05186802,2259.9,2259.1,3.02488611]
[1773657972026,3.05186802,2259.9,2259.1,3.24616611]
[1773657973330,3.05186802,2259.9,2259.1,3.02488611]
[1773657981229,3.05186802,2259.9,2259.1,0.00565562]
[1773657982031,3.05186802,2259.9,2259.1,3.02488611]
[1773657982929,3.89112636,2259.5,2259.1,3.02488611]
[1773657983733,3.89112636,2259.7,2259.1,3.02488611]
[1773657984031,3.89112636,2259.9,2259.2,2.90053895]
[1773657984729,2.91141539,2260.1,2259.4,2.90053895]
[1773657984934,0.00407234,2260.2,2259.1,0.00565562]
[1773657984935,0.00407234,2260.2,2259.6,2.90053895]
[1773657985133,3.8951987,2260.2,2259.6,2.90053895]
[1773657986134,0.98378331,2260.2,2259.6,2.90053895]
[1773657986537,3.8951987,2260.2,2259.6,2.90053895]
[1773657986740,2.91548773,2260.2,2259.6,2.90053895]
[1773657988238,0.00407234,2260.2,2259.6,2.90053895]
[1773657988444,0.00407234,2260.2,2259.7,0.22123]
[1773657988741,0.00169979,2260.2,2259.8,2.90053895]
[1773657992540,40.8,2260.4,2259.8,2.90053895]
[1773657992744,7.34141539,2260.7,2259.8,2.90053895]
[1773657993144,40.8,2260.6,2259.8,2.90053895]